fUSD/lending_fUSD_20241225
["ID","MTS","AMOUNT","RATE_DAILY","PERIOD"]
[346586976,1735117845103,-1587.36,9.783e-05,2]
[346586977,1735117845113,-1818.83,9.783e-05,2]
[346586978,1735117845122,-500.0,9.783e-05,2]
[346586979,1735117845132,-557.03,9.783e-05,2]
[346586980,1735117845141,-500.0,9.783e-05,2]
[346586981,1735117845150,-2234.05,9.783e-05,2]
[346586982,1735117845331,-1575.54,9.783e-05,2]
[346586983,1735117845341,-551.87,9.783e-05,2]
[346586984,1735117845350,-500.0,9.783e-05,2]
[346586985,1735117845359,-501.4425418,9.783e-05,2]
[346586986,1735117845369,-1482.36,9.783e-05,2]
[346586987,1735117845380,-596.65,9.783e-05,2]
[346586988,1735117845389,-500.0,9.783e-05,2]
[346586989,1735117845398,-500.0,9.783e-05,2]
[346586990,1735117845408,-665.7,9.783e-05,2]
[346586991,1735117845418,-500.0,9.783e-05,2]
[346586992,1735117845428,-500.0,9.783e-05,2]
[346586993,1735117845437,-2948.77,9.783e-05,2]
[346586994,1735117845446,-500.0,9.783e-05,2]
[346586995,1735117845456,-500.0,9.783e-05,2]
[346586996,1735117845466,-4184.49,9.783e-05,2]
[346586997,1735117845476,-214.32166622,9.783e-05,2]
[346586998,1735117845486,-513.09,9.783e-05,2]
[346586999,1735117845496,-500.0,9.783e-05,2]
[346587000,1735117845506,-1482.47,9.783e-05,2]
[346587001,1735117845515,-1057.45362903,9.784e-05,3]
[346587002,1735117845526,-150.854693,9.784e-05,2]
[346587003,1735117845536,-500.0,9.784e-05,2]
[346587004,1735117845547,-500.0,9.784e-05,2]
[346587005,1735117845557,-500.0,9.784e-05,2]
[346587006,1735117845566,-500.0,9.784e-05,2]
[346587007,1735117845575,-500.0,9.784e-05,2]
[346587008,1735117845585,-500.0,9.784e-05,2]
[346587009,1735117845594,-500.0,9.784e-05,2]
[346587010,1735117845604,-500.0,9.784e-05,2]
[346587011,1735117845613,-500.0,9.784e-05,2]
[346587012,1735117845623,-500.0,9.784e-05,2]
[346587013,1735117845632,-500.0,9.784e-05,2]
[346587014,1735117845642,-1765.8,9.784e-05,2]
[346587015,1735117845653,-796.89,9.784e-05,2]
[346587016,1735117845662,-1009.26,9.784e-05,2]
[346587017,1735117845672,-1347.84,9.784e-05,2]
[346587018,1735117845681,-527.22208072,9.784e-05,2]
[346587019,1735117845691,-500.0,9.784e-05,2]
[346587020,1735117845700,-500.0,9.784e-05,2]
[346587021,1735117845709,-477.36830296,9.784e-05,2]
[346587022,1735117845719,-509.9038446,9.784e-05,2]
[346587023,1735117845728,-500.0,9.784e-05,2]
[346587024,1735117845737,-644.38,9.784e-05,2]
[346587025,1735117845747,-500.0,9.784e-05,2]
[346587026,1735117845756,-500.0,9.784e-05,2]
[346587027,1735117845767,-513.35611071,9.784e-05,2]
[346587028,1735117845776,-500.0,9.784e-05,2]
[346587029,1735117845785,-577.28,9.784e-05,2]
[346587030,1735117845796,-500.0,9.784e-05,2]
[346587031,1735117845805,-500.0,9.784e-05,2]
[346587032,1735117845815,-506.07,9.784e-05,2]
[346587033,1735117845825,-500.0,9.784e-05,2]
[346587034,1735117845835,-500.0,9.784e-05,2]
[346587035,1735117845846,-796.34,9.784e-05,2]
[346587036,1735117845855,-500.0,9.784e-05,2]
[346587037,1735117845865,-500.0,9.784e-05,2]
[346587038,1735117845875,-1652.3,9.784e-05,2]
[346587039,1735117845884,-500.0,9.784e-05,2]
[346587040,1735117845893,-500.0,9.784e-05,2]
[346587041,1735117845904,-500.0,9.784e-05,2]
[346587042,1735117845914,-500.0,9.784e-05,2]
[346587043,1735117845923,-1517.25,9.784e-05,2]
[346587044,1735117845933,-1230.45,9.784e-05,2]
[346587045,1735117845942,-500.0,9.784e-05,2]
[346587046,1735117845951,-989.86,9.784e-05,2]
[346587047,1735117845960,-500.0,9.784e-05,2]
[346587048,1735117845970,-500.0,9.784e-05,2]
[346587049,1735117845979,-500.0,9.784e-05,2]
[346587050,1735117845990,-500.0,9.784e-05,2]
[346587051,1735117845999,-2106.98,9.784e-05,2]
[346587052,1735117846009,-514.17,9.784e-05,2]
[346587053,1735117846018,-909.02,9.784e-05,2]
[346587054,1735117846028,-500.0,9.784e-05,2]
[346587055,1735117846038,-500.0,9.784e-05,2]
[346587056,1735117846048,-500.0,9.784e-05,2]
[346587057,1735117846057,-500.0,9.784e-05,2]
[346587058,1735117846066,-425.84976789,9.784e-05,2]
[346587059,1735117846075,-500.0,9.784e-05,2]
[346587060,1735117846085,-1021.92,9.784e-05,2]
[346587061,1735117846094,-500.0,9.784e-05,2]
[346587062,1735117846103,-563.65,9.784e-05,2]
[346587063,1735117846112,-722.68,9.784e-05,2]
[346587065,1735117846121,-500.0,9.784e-05,2]
[346587066,1735117846130,-579.47,9.784e-05,2]
[346587067,1735117846139,-908.34,9.784e-05,2]
[346587068,1735117846148,-500.0,9.784e-05,2]
[346587069,1735117846157,-500.0,9.784e-05,2]
[346587070,1735117846166,-500.0,9.784e-05,2]
[346587071,1735117846175,-500.0,9.784e-05,2]
[346587072,1735117846185,-500.0,9.784e-05,2]
[346587073,1735117846194,-1210.98,9.784e-05,2]
[346587074,1735117846204,-795.7,9.784e-05,2]
[346587075,1735117846213,-500.0,9.784e-05,2]
[346587076,1735117846222,-676.25,9.784e-05,2]
[346587077,1735117846231,-799.23,9.784e-05,2]
[346587078,1735117846241,-500.0,9.784e-05,2]
[346587079,1735117846250,-500.0,9.784e-05,2]
[346587080,1735117846260,-1684.82,9.784e-05,2]
[346587081,1735117846269,-500.0,9.784e-05,2]
[346587082,1735117846279,-1047.28,9.784e-05,2]
[346587083,1735117846288,-699.98,9.784e-05,2]
[346587084,1735117846297,-519.83284792,9.784e-05,2]
[346587085,1735117846307,-500.0,9.784e-05,2]
[346587086,1735117846316,-500.0,9.784e-05,2]
[346587087,1735117846325,-500.0,9.784e-05,2]
[346587088,1735117846335,-500.0,9.784e-05,2]
[346587089,1735117846345,-500.0,9.784e-05,2]
[346587090,1735117846354,-582.85,9.784e-05,2]
[346587091,1735117846364,-500.0,9.784e-05,2]
[346587092,1735117846374,-500.0,9.784e-05,2]
[346587093,1735117846384,-500.0,9.784e-05,2]
[346587094,1735117846394,-500.0,9.784e-05,2]
[346587095,1735117846403,-500.0,9.784e-05,2]
[346587096,1735117846412,-500.0,9.784e-05,2]
[346587097,1735117846421,-309.83017488,9.784e-05,2]
[346587098,1735117846430,-178.17975762,9.784e-05,2]
[346587099,1735117846439,-1751.97,9.784e-05,2]
[346587100,1735117846450,-500.0,9.784e-05,2]
[346587101,1735117846460,-500.0,9.784e-05,2]
[346587102,1735117846470,-738.46,9.784e-05,2]
[346587103,1735117846481,-1540.44,9.784e-05,2]
[346587104,1735117846491,-740.11,9.784e-05,2]
[346587105,1735117846500,-500.0,9.784e-05,2]
[346587106,1735117846509,-1276.69,9.784e-05,2]
[346587107,1735117846520,-818.37,9.784e-05,2]
[346587108,1735117846531,-500.0,9.784e-05,2]
[346587109,1735117846541,-500.0,9.784e-05,2]
[346587110,1735117846551,-500.0,9.784e-05,2]
[346587111,1735117846560,-500.0,9.784e-05,2]
[346587112,1735117846569,-500.0,9.784e-05,2]
[346587113,1735117846579,-500.0,9.784e-05,2]
[346587114,1735117846588,-500.0,9.784e-05,2]
[346587115,1735117846597,-500.0,9.784e-05,2]
[346587116,1735117846607,-500.0,9.784e-05,2]
[346587117,1735117846616,-2525.68,9.784e-05,2]
[346587118,1735117846626,-500.0,9.784e-05,2]
[346587119,1735117846635,-500.0,9.784e-05,2]
[346587121,1735117846644,-500.0,9.784e-05,2]
[346587122,1735117846654,-865.94,9.784e-05,2]
[346587124,1735117846664,-1744.13,9.784e-05,2]
[346587126,1735117846674,-504.29814175,9.784e-05,2]
[346587127,1735117846684,-500.0,9.784e-05,2]
[346587128,1735117846693,-1146.0,9.784e-05,2]
[346587129,1735117846703,-639.5,9.784e-05,2]
[346587130,1735117846712,-500.0,9.784e-05,2]
[346587131,1735117846721,-1852.47,9.784e-05,2]
[346587132,1735117846731,-500.0,9.784e-05,2]
[346587133,1735117846740,-1788.93,9.784e-05,2]
[346587134,1735117846749,-500.0,9.784e-05,2]
[346587135,1735117846758,-509.36434445,9.784e-05,2]
[346587136,1735117846767,-159.20563411,9.784e-05,2]
[346587137,1735117846776,-500.0,9.784e-05,2]
[346587138,1735117846786,-2221.46,9.784e-05,2]
[346587139,1735117846795,-500.0,9.784e-05,2]
[346587140,1735117846804,-500.0,9.784e-05,2]
[346587141,1735117846814,-500.0,9.784e-05,2]
[346587142,1735117846823,-3406.93,9.784e-05,2]
[346587143,1735117846832,-1110.29,9.784e-05,2]
[346587144,1735117846841,-1183.95,9.784e-05,2]
[346587145,1735117846851,-500.0,9.784e-05,2]
[346587146,1735117846860,-1120.35,9.784e-05,2]
[346587147,1735117846869,-500.0,9.784e-05,2]
[346587148,1735117846878,-500.0,9.784e-05,2]
[346587149,1735117846887,-500.0,9.784e-05,2]
[346587150,1735117846896,-502.5956984,9.784e-05,2]
[346587151,1735117846906,-500.0,9.784e-05,2]
[346587152,1735117846915,-500.0,9.784e-05,2]
[346587153,1735117846924,-1695.6,9.784e-05,2]
[346587154,1735117846934,-1625.38,9.784e-05,2]
[346587155,1735117846942,-684.41,9.784e-05,2]
[346587156,1735117846953,-500.0,9.784e-05,2]
[346587157,1735117846962,-500.0,9.784e-05,2]
[346587158,1735117846972,-500.0,9.784e-05,2]
[346587159,1735117846981,-1261.3,9.784e-05,2]
[346587160,1735117846991,-1949.36,9.784e-05,2]
[346587161,1735117847000,-521.99,9.784e-05,2]
[346587162,1735117847009,-672.28,9.784e-05,2]
[346587163,1735117847018,-500.0,9.784e-05,2]
[346587164,1735117847027,-500.0,9.784e-05,2]
[346587165,1735117847036,-2057.59,9.784e-05,2]
[346587166,1735117847045,-500.0,9.784e-05,2]
[346587167,1735117847055,-500.0,9.784e-05,2]
[346587168,1735117847064,-500.0,9.784e-05,2]
[346587169,1735117847074,-1372.35,9.784e-05,2]
[346587170,1735117847083,-500.0,9.784e-05,2]
[346587171,1735117847092,-848.22,9.784e-05,2]
[346587172,1735117847101,-2750.62,9.784e-05,2]
[346587173,1735117847111,-1327.3,9.784e-05,2]
[346587174,1735117847119,-500.0,9.784e-05,2]
[346587175,1735117847128,-532.72439998,9.784e-05,2]
[346587176,1735117847138,-500.0,9.784e-05,2]
[346587177,1735117847147,-500.0,9.784e-05,2]
[346587178,1735117847157,-500.0,9.784e-05,2]
[346587179,1735117847166,-1530.98,9.784e-05,2]
[346587180,1735117847175,-500.61896335,9.784e-05,2]
[346587181,1735117847186,-500.0,9.784e-05,2]
[346587182,1735117847196,-500.0,9.784e-05,2]
[346587183,1735117847205,-500.0,9.784e-05,2]
[346587184,1735117847214,-1877.58,9.784e-05,2]
[346587185,1735117847223,-500.0,9.784e-05,2]
[346587186,1735117847233,-735.96,9.784e-05,2]
[346587187,1735117847242,-500.0,9.784e-05,2]
[346587188,1735117847251,-500.0,9.784e-05,2]
[346587189,1735117847260,-500.0,9.784e-05,2]
[346587190,1735117847270,-500.0,9.784e-05,2]
[346587191,1735117847279,-396.41510828,9.784e-05,2]
[346587192,1735117847288,-683.16,9.784e-05,2]
[346587193,1735117847297,-923.51,9.784e-05,2]
[346587194,1735117847307,-500.0,9.784e-05,2]
[346587195,1735117847315,-1909.64,9.784e-05,2]
[346587196,1735117847324,-500.0,9.784e-05,2]
[346587197,1735117847334,-1217.47,9.784e-05,2]
[346587198,1735117847343,-500.0,9.784e-05,2]
[346587199,1735117847353,-664.69,9.784e-05,2]
[346587200,1735117847363,-500.0,9.784e-05,2]
[346587201,1735117847372,-500.0,9.784e-05,2]
[346587202,1735117847381,-1458.4,9.784e-05,2]
[346587203,1735117847391,-500.0,9.784e-05,2]
[346587204,1735117847400,-500.0,9.784e-05,2]
[346587205,1735117847409,-500.0,9.784e-05,2]
[346587206,1735117847418,-500.0,9.784e-05,2]
[346587207,1735117847427,-1664.87,9.784e-05,2]
[346587208,1735117847437,-500.0,9.784e-05,2]
[346587209,1735117847447,-500.0,9.784e-05,2]
[346587210,1735117847456,-500.0,9.784e-05,2]
[346587211,1735117847465,-541.32,9.784e-05,2]
[346587212,1735117847474,-500.0,9.784e-05,2]
[346587213,1735117847483,-853.2,9.784e-05,2]
[346587214,1735117847493,-2929.3,9.784e-05,2]
[346587215,1735117847502,-1202.12,9.784e-05,2]
[346587216,1735117847511,-500.0,9.784e-05,2]
[346587217,1735117847521,-500.0,9.784e-05,2]
[346587218,1735117847530,-1645.45,9.784e-05,2]
[346587219,1735117847539,-500.0,9.784e-05,2]
[346587220,1735117847549,-500.0,9.784e-05,2]
[346587221,1735117847558,-191.96194033,9.784e-05,2]
[346587222,1735117847567,-1150.44,9.784e-05,2]
[346587223,1735117847576,-500.0,9.784e-05,2]
[346587224,1735117847585,-957.11,9.784e-05,2]
[346587225,1735117847594,-535.99898664,9.784e-05,2]
[346587226,1735117847603,-500.0,9.784e-05,2]
[346587227,1735117847613,-500.0,9.784e-05,2]
[346587228,1735117847622,-500.0,9.784e-05,2]
[346587229,1735117847631,-500.0,9.784e-05,2]
[346587230,1735117847640,-500.0,9.784e-05,2]
[346587231,1735117847650,-500.0,9.784e-05,2]
[346587232,1735117847659,-2027.68,9.784e-05,2]
[346587233,1735117847668,-500.0,9.784e-05,2]
[346587234,1735117847677,-500.0,9.784e-05,2]
[346587235,1735117847687,-500.0,9.784e-05,2]
[346587236,1735117847697,-1827.47,9.784e-05,2]
[346587237,1735117847707,-500.0,9.784e-05,2]
[346587238,1735117847716,-500.0,9.784e-05,2]
[346587239,1735117847726,-599.36,9.784e-05,2]
[346587240,1735117847734,-500.0,9.784e-05,2]
[346587241,1735117847744,-500.0,9.784e-05,2]
[346587242,1735117847753,-1751.39,9.784e-05,2]
[346587243,1735117847762,-2849.16,9.784e-05,2]
[346587244,1735117847771,-2731.51,9.784e-05,2]
[346587245,1735117847781,-500.0,9.784e-05,2]
[346587246,1735117847790,-500.0,9.784e-05,2]
[346587247,1735117847800,-500.0,9.784e-05,2]
[346587248,1735117847809,-2122.16,9.784e-05,2]
[346587249,1735117847818,-500.0,9.784e-05,2]
[346587250,1735117847827,-819.81,9.784e-05,2]
[346587251,1735117847836,-2313.68,9.784e-05,2]
[346587252,1735117847845,-500.0,9.784e-05,2]
[346587253,1735117847855,-500.0,9.784e-05,2]
[346587254,1735117847864,-1003.79,9.784e-05,2]
[346587255,1735117847873,-500.0,9.784e-05,2]
[346587256,1735117847883,-573.37,9.784e-05,2]
[346587257,1735117847892,-500.0,9.784e-05,2]
[346587258,1735117847901,-2166.19,9.784e-05,2]
[346587259,1735117847911,-2243.86,9.784e-05,2]
[346587260,1735117847920,-2127.0,9.784e-05,2]
[346587261,1735117847929,-500.0,9.784e-05,2]
[346587262,1735117847939,-500.0,9.784e-05,2]
[346587263,1735117847947,-1884.05,9.784e-05,2]
[346587264,1735117847956,-1817.92,9.784e-05,2]
[346587265,1735117847965,-500.0,9.784e-05,2]
[346587266,1735117847975,-500.0,9.784e-05,2]
[346587267,1735117847984,-500.0,9.784e-05,2]
[346587268,1735117847998,-500.0,9.784e-05,2]
[346587269,1735117848007,-500.0,9.784e-05,2]
[346587270,1735117848016,-1957.45,9.784e-05,2]
[346587271,1735117848025,-500.0,9.784e-05,2]
[346587272,1735117848035,-500.0,9.784e-05,2]
[346587273,1735117848044,-3248.89,9.784e-05,2]
[346587274,1735117848054,-500.0,9.784e-05,2]
[346587275,1735117848229,-1684.91,9.784e-05,2]
[346587276,1735117848240,-500.0,9.784e-05,2]
[346587277,1735117848249,-1544.0,9.784e-05,2]
[346587278,1735117848260,-2242.56,9.784e-05,2]
[346587279,1735117848270,-2698.73,9.784e-05,2]
[346587280,1735117848279,-500.0,9.784e-05,2]
[346587281,1735117848288,-500.0,9.784e-05,2]
[346587282,1735117848297,-1435.21,9.784e-05,2]
[346587283,1735117848307,-9543.63,9.784e-05,2]
[346587284,1735117848316,-1557.33,9.784e-05,2]
[346587285,1735117848325,-500.0,9.784e-05,2]
[346587286,1735117848335,-500.0,9.784e-05,2]
[346587287,1735117848344,-758.58,9.784e-05,2]
[346587288,1735117848354,-500.0,9.784e-05,2]
[346587289,1735117848363,-500.0,9.784e-05,2]
[346587290,1735117848372,-2344.79,9.784e-05,2]
[346587291,1735117848382,-7740.71,9.784e-05,2]
[346587292,1735117848391,-500.0,9.784e-05,2]
[346587293,1735117848401,-1948.15,9.784e-05,2]
[346587294,1735117848411,-500.0,9.784e-05,2]
[346587295,1735117848420,-532.56159129,9.784e-05,2]
[346587296,1735117848429,-500.0,9.784e-05,2]
[346587297,1735117848439,-1240.05,9.784e-05,2]
[346587298,1735117848448,-1255.14,9.784e-05,2]
[346587299,1735117848458,-500.0,9.784e-05,2]
[346587300,1735117848468,-500.0,9.784e-05,2]
[346587301,1735117848477,-2361.66,9.784e-05,2]
[346587302,1735117848487,-500.0,9.784e-05,2]
[346587303,1735117848496,-745.61,9.784e-05,2]
[346587304,1735117848506,-2005.63,9.784e-05,2]
[346587305,1735117848516,-3010.5,9.784e-05,2]
[346587306,1735117848525,-4123.72,9.784e-05,2]
[346587307,1735117848535,-500.0,9.784e-05,2]
[346587308,1735117848544,-826.23,9.784e-05,2]
[346587309,1735117848554,-500.0,9.784e-05,2]
[346587310,1735117848563,-500.0,9.784e-05,2]
[346587311,1735117848573,-1109.79,9.784e-05,2]
[346587312,1735117848583,-500.0,9.784e-05,2]
[346587313,1735117848593,-695.08,9.784e-05,2]
[346587314,1735117848602,-500.0,9.784e-05,2]
[346587315,1735117848612,-482.1842626,9.784e-05,2]
[346587316,1735117848621,-500.0,9.784e-05,2]
[346587317,1735117848631,-1458.97,9.784e-05,2]
[346587318,1735117848640,-1970.26,9.784e-05,2]
[346587319,1735117848649,-931.59,9.784e-05,2]
[346587320,1735117848659,-500.0,9.784e-05,2]
[346587321,1735117848668,-500.0,9.784e-05,2]
[346587322,1735117848678,-937.44,9.784e-05,2]
[346587323,1735117848688,-1721.03,9.784e-05,2]
[346587324,1735117848698,-1954.32,9.784e-05,2]
[346587325,1735117848708,-500.0,9.784e-05,2]
[346587326,1735117848717,-1354.98,9.784e-05,2]
[346587327,1735117848727,-883.69,9.784e-05,2]
[346587328,1735117848736,-1120.72,9.784e-05,2]
[346587329,1735117848745,-4202.1,9.784e-05,2]
[346587330,1735117848754,-486.71858145,9.784e-05,2]
[346587331,1735117848764,-574.24521966,9.784e-05,2]
[346587332,1735117848773,-602.24,9.784e-05,2]
[346587333,1735117848782,-1065.33,9.784e-05,2]
[346587334,1735117848791,-500.0,9.784e-05,2]
[346587335,1735117848800,-500.0,9.784e-05,2]
[346587336,1735117848810,-500.0,9.784e-05,2]
[346587337,1735117848819,-500.0,9.784e-05,2]
[346587338,1735117848829,-2196.84,9.784e-05,2]
[346587339,1735117848838,-810.95,9.784e-05,2]
[346587340,1735117848847,-350.19390126,9.784e-05,2]
[346587341,1735117848856,-500.0,9.784e-05,2]
[346587342,1735117848866,-2063.71,9.784e-05,2]
[346587343,1735117848875,-849.39,9.784e-05,2]
[346587344,1735117848886,-500.0,9.784e-05,2]
[346587345,1735117848895,-3884.76,9.784e-05,2]
[346587346,1735117848904,-500.0,9.784e-05,2]
[346587347,1735117848913,-500.0,9.784e-05,2]
[346587348,1735117848922,-3166.77,9.784e-05,2]
[346587349,1735117848931,-500.0,9.784e-05,2]
[346587350,1735117848940,-500.0,9.784e-05,2]
[346587351,1735117848950,-500.0,9.784e-05,2]
[346587352,1735117848959,-500.0,9.784e-05,2]
[346587353,1735117848968,-500.0,9.784e-05,2]
[346587354,1735117848978,-500.0,9.784e-05,2]
[346587355,1735117848988,-500.0,9.784e-05,2]
[346587356,1735117849000,-500.0,9.784e-05,2]
[346587357,1735117849010,-4083.61,9.784e-05,2]
[346587358,1735117849019,-500.0,9.784e-05,2]
[346587359,1735117849028,-860.0,9.785e-05,2]
[346587360,1735117849038,-500.0,9.785e-05,2]
[346587361,1735117849047,-500.0,9.785e-05,2]
[346587362,1735117849057,-500.0,9.785e-05,2]
[346587363,1735117849066,-500.0,9.785e-05,2]
[346587364,1735117849075,-500.0,9.785e-05,2]
[346587365,1735117849085,-641.6012617,9.785e-05,2]
[346587366,1735117849094,-500.0,9.785e-05,2]
[346587367,1735117849103,-500.0,9.785e-05,2]
[346587368,1735117849112,-500.0,9.785e-05,2]
[346587369,1735117849121,-500.0,9.785e-05,2]
[346587370,1735117849130,-500.0,9.785e-05,2]
[346587371,1735117849140,-500.0,9.785e-05,2]
[346587372,1735117849150,-500.0,9.785e-05,2]
[346587373,1735117849159,-636.33947206,9.785e-05,2]
[346587374,1735117849168,-500.62610563,9.785e-05,2]
[346587375,1735117849178,-500.0,9.785e-05,2]
[346587376,1735117849187,-500.0,9.785e-05,2]
[346587377,1735117849196,-500.0,9.785e-05,2]
[346587378,1735117849206,-500.0,9.785e-05,2]
[346587379,1735117849215,-500.0,9.785e-05,2]
[346587380,1735117849224,-500.0,9.785e-05,2]
[346587381,1735117849233,-378.69779124,9.785e-05,2]
[346587382,1735117849243,-193.25412059,9.785e-05,2]
[346587383,1735117849252,-500.0,9.785e-05,2]
[346587384,1735117849261,-500.0,9.785e-05,2]
[346587385,1735117849270,-408.04878541,9.785e-05,2]
[346587386,1735117849280,-300.0,9.785e-05,2]
[346587387,1735117849289,-236.87672376,9.785e-05,2]
[346587388,1735117849298,-500.0,9.785e-05,2]
[346587389,1735117849307,-502.00972918,9.785e-05,2]
[346587390,1735117849316,-500.0,9.785e-05,2]
[346587391,1735117849325,-500.0,9.785e-05,2]
[346587392,1735117849334,-500.0,9.785e-05,2]
[346587393,1735117849343,-500.0,9.785e-05,2]
[346587394,1735117849352,-500.0,9.785e-05,2]
[346587395,1735117849361,-500.0,9.785e-05,2]
[346587396,1735117849370,-500.0,9.785e-05,2]
[346587397,1735117849380,-500.0,9.785e-05,2]
[346587398,1735117849389,-337.24933467,9.785e-05,2]
[346587399,1735117849398,-500.0,9.785e-05,2]
[346587400,1735117849407,-515.29720162,9.785e-05,2]
[346587401,1735117849416,-502.4646789,9.785e-05,2]
[346587402,1735117849426,-500.0,9.785e-05,2]
[346587403,1735117849436,-500.0,9.785e-05,2]
[346587404,1735117849445,-500.0,9.785e-05,2]
[346587405,1735117849455,-554.50116122,9.785e-05,2]
[346587406,1735117849464,-500.0,9.785e-05,2]
[346587407,1735117849473,-556.33089678,9.785e-05,2]
[346587408,1735117849482,-500.0,9.785e-05,2]
[346587409,1735117849492,-500.0,9.785e-05,2]
[346587410,1735117849501,-500.0,9.785e-05,2]
[346587411,1735117849510,-497.82616797,9.785e-05,2]
[346587412,1735117849519,-500.0,9.785e-05,2]
[346587413,1735117849528,-3757.38,9.785e-05,2]
[346587414,1735117849537,-500.0,9.785e-05,2]
[346587415,1735117849547,-951.42,9.785e-05,2]
[346587416,1735117849556,-589.51,9.785e-05,2]
[346587417,1735117849566,-1494.47,9.785e-05,2]
[346587418,1735117849576,-500.0,9.785e-05,2]
[346587419,1735117849585,-500.0,9.785e-05,2]
[346587420,1735117849595,-500.0,9.785e-05,2]
[346587421,1735117849603,-1894.31,9.785e-05,2]
[346587422,1735117849614,-696.67,9.785e-05,2]
[346587423,1735117849622,-1797.69,9.785e-05,2]
[346587424,1735117849632,-500.0,9.785e-05,2]
[346587425,1735117849641,-500.0,9.785e-05,2]
[346587426,1735117849651,-1860.78,9.785e-05,2]
[346587427,1735117849660,-500.0,9.785e-05,2]
[346587428,1735117849670,-500.0,9.785e-05,2]
[346587429,1735117849679,-500.0,9.785e-05,2]
[346587430,1735117849689,-500.0,9.785e-05,2]
[346587431,1735117849699,-500.0,9.785e-05,2]
[346587432,1735117849708,-2656.6,9.785e-05,2]
[346587433,1735117849717,-1735.55,9.785e-05,2]
[346587434,1735117849727,-1649.87,9.785e-05,2]
[346587435,1735117849736,-792.34,9.785e-05,2]
[346587436,1735117849745,-1982.66,9.785e-05,2]
[346587437,1735117849754,-1733.5,9.785e-05,2]
[346587438,1735117849763,-2185.19,9.785e-05,2]
[346587439,1735117849772,-1951.96,9.785e-05,2]
[346587440,1735117849781,-616.05,9.785e-05,2]
[346587441,1735117849790,-2652.08,9.785e-05,2]
[346587442,1735117849801,-1395.3,9.785e-05,2]
[346587443,1735117849810,-2775.16,9.785e-05,2]
[346587444,1735117849819,-2698.73,9.785e-05,2]
[346587445,1735117849828,-1531.43,9.785e-05,2]
[346587446,1735117849838,-500.0,9.785e-05,2]
[346587447,1735117849847,-2169.63,9.785e-05,2]
[346587448,1735117849857,-3871.28,9.785e-05,2]
[346587449,1735117849867,-2070.89,9.785e-05,2]
[346587450,1735117849877,-1689.1,9.785e-05,2]
[346587451,1735117849887,-1873.35,9.785e-05,2]
[346587452,1735117849897,-1643.8,9.785e-05,2]
[346587453,1735117849907,-500.0,9.785e-05,2]
[346587454,1735117849916,-4175.64,9.785e-05,2]
[346587455,1735117849925,-2379.62,9.785e-05,2]
[346587456,1735117849935,-4007.91,9.785e-05,2]
[346587457,1735117849944,-1196.73,9.785e-05,2]
[346587458,1735117849955,-3822.5,9.785e-05,2]
[346587459,1735117849964,-1360.71,9.785e-05,2]
[346587460,1735117849974,-4317.88,9.785e-05,2]
[346587461,1735117849983,-1892.86,9.785e-05,2]
[346587462,1735117849995,-808.95,9.785e-05,2]
[346587463,1735117850004,-2518.38,9.785e-05,2]
[346587464,1735117850014,-592.8,9.786e-05,2]
[346587465,1735117850024,-1652.97,9.786e-05,2]
[346587466,1735117850033,-500.0,9.786e-05,2]
[346587467,1735117850043,-500.0,9.786e-05,2]
[346587468,1735117850052,-500.0,9.786e-05,2]
[346587469,1735117850062,-500.0,9.786e-05,2]
[346587470,1735117850071,-538.31,9.786e-05,2]
[346587471,1735117850082,-500.0,9.786e-05,2]
[346587472,1735117850103,-500.0,9.786e-05,2]
[346587473,1735117850113,-500.0,9.786e-05,2]
[346587474,1735117850123,-500.0,9.786e-05,2]
[346587475,1735117850134,-500.0,9.786e-05,2]
[346587476,1735117850143,-500.0,9.786e-05,2]
[346587477,1735117850153,-500.0,9.786e-05,2]
[346587478,1735117850163,-1092.23,9.786e-05,2]
[346587479,1735117850172,-500.0,9.786e-05,2]